Cogmind - Beta 16 @@@ ROGUE MODE // 2025.12.13 @ 11:30:41 Player: Derk Result: Destroyed by G-67 Veteran with Field Laser Performance ------------- Evolutions (5) 2500 Regions Visited (8) 1600 Robots Destroyed (130) 650 Value Destroyed (5512) 5512 Prototype IDs (29) 580 Alien Tech Used (0) 0 Bonus (4508) 4508 TOTAL SCORE: 15350 Bonus ------- Triggered High Security 500 High Alert Combat Kills 1466 Follower Combat Kills 591 Registered with UFD 300 Met Optimus in HQ 500 Met Warlord at Base 500 MAIN.C Attacked Warlord 500 Warlord Defense Kills 220 Friendly Fire -69 Cogmind --------- Core Integrity 0/1000 Matter 290/300 Energy 650/660 System Corruption 2% Temperature Cool (0) Movement Walking (183) Ox1 Location -4/Proximity Caves Parts ------- > --- POWER (1) -------- Reinforced Fission Core > --- PROPULSION (4) --- Flexi-carbon Leg Thunder Leg Myomer Leg > --- UTILITY (9) ------ Huge Storage Unit Energy Well Improved Signal Interpreter > --- WEAPON (3) ------- Plasma Lance > --- INVENTORY (25) --- Light Nuclear Core Enhanced Biometal Leg Wheel Matter Compressor (158) Surveybot 17 Chip Advanced Kinecellerator Tower Shield Advanced Trap Extractor (2/8 Vortex) Personal Teleporter v0.10 (Charged) Field Laser Thermoblaster LU-1G1's Laser Shovel Shock Maul Sapper Charge Sapper Charge Sapper Charge Peak State ------------ > --- POWER ------------ Reinforced Fission Core > --- PROPULSION ------- Overtuned Huge Scrapsphere Overtuned Huge Scrapsphere > --- UTILITY ---------- Scrap Suit Huge Storage Unit Improved Signal Interpreter Advanced Kinecellerator Makeshift Light Armor Plating Makeshift Light Armor Plating Centrium Light Armor Plating Makeshift Ablative Armor > --- WEAPON ----------- Heavy Gatling Laser Vortex Rail Long-range Missile Launcher > --- INVENTORY -------- Reinforced Fission Core Thunder Leg Enhanced Biometal Leg Wheel Energy Well Matter Compressor Improved Sensor Array Surveybot 17 Chip Makeshift Ablative Armor Tower Shield Improved Remote Force Field Advanced Trap Extractor Personal Teleporter v0.10 Backup Laser III Vortex Rail Thermoblaster LU-1G1's Laser Shovel Shock Maul Plasma Lance Sapper Charge Sapper Charge Sapper Charge [Rating: 109] Favorites ----------- Power Reinforced Fission Core Engine Improved Ion Engine Power Core Reinforced Fission Core Propulsion Overtuned Huge Scrapsphere Treads Armored Medium Treads Leg Myomer Leg Wheel Overtuned Huge Scrapsphere Utility Huge Storage Unit Device Seismic Detector Storage Huge Storage Unit Processor Makeshift Salvage Targeting Computer Hackware Improved System Shield Protection Layered Heavy Armor Plating Weapon Assault Rifle Energy Gun Heavy Gatling Laser Energy Cannon Heavy Phase Cannon Ballistic Gun Assault Rifle Ballistic Cannon Magnetic Acceleration Cannon Launcher Improved Proton Missile Launcher Special Weapon LU-1G1's Laser Shovel Impact Weapon Makeshift Hammer Slashing Weapon Mining Claw Piercing Weapon Plasma Lance Build | -11 -10 -10 -7 -5 -5 -5 -5 -4 ------- Run | Yrd Mat Sub Scr Fac Upp Upp War Pro Slots Evolved 10 | . . . . 10 . . . . Power . | . . . . . . . . . Propulsion 2 | . . . . 2 . . . . Utility 7 | . . . . 7 . . . . Weapon 1 | . . . . 1 . . . . Parts Attached 113 | 7 10 7 12 55 1 3 5 13 Power 8 | 1 1 . 2 3 . . . 1 Engine 3 | 1 . . 2 . . . . . Core 5 | . 1 . . 3 . . . 1 Reactor . | . . . . . . . . . Propulsion 23 | 2 3 2 2 10 1 . . 3 Treads 11 | 2 . 2 . 7 . . . . Leg 3 | . . . . . . . . 3 Wheel 9 | . 3 . 2 3 1 . . . Hover . | . . . . . . . . . Flight . | . . . . . . . . . Utility 48 | 2 4 . 4 29 . . 4 5 Device 23 | 1 2 . 2 16 . . . 2 Storage 5 | 1 1 . 1 1 . . . 1 Processor 5 | . . . . 4 . . . 1 Hackware 2 | . 1 . . 1 . . . . Protection 13 | . . . 1 7 . . 4 1 Artifact . | . . . . . . . . . Weapon 34 | 2 2 5 4 13 . 3 1 4 Energy Gun 9 | . . 4 . 2 . . 1 2 Energy Cannon 3 | . . . 1 2 . . . . Ballistic Gun 13 | 2 2 . 1 5 . 2 . 1 Ballistic Cannon 1 | . . . 1 . . . . . Launcher 2 | . . . . 2 . . . . Special Weapon 2 | . . . 1 . . 1 . . Impact Weapon 2 | . . . . 2 . . . . Slashing Weapon 1 | . . 1 . . . . . . Piercing Weapon 1 | . . . . . . . . 1 Special Melee Weapon . | . . . . . . . . . Unidentified Prototypes 7 | . . . 1 2 . . 2 2 Corrupted Parts 1 | . . . . . 1 . . . System Corruption 9 | . . . . . 9 . . . Parts Lost 41 | . . 4 . 17 . 1 1 18 Power 2 | . . 1 . . . . . 1 Propulsion 8 | . . 1 . 5 . . . 2 Utility 17 | . . . . 7 . . 1 9 Weapon 14 | . . 2 . 5 . 1 . 6 Highest Loss Streak 5 | . . 4 . 2 . 1 1 5 To Critical Strikes 1 | . . . . . . . . 1 Average Backups 17 | 3 10 21 18 20 13 15 20 14 Power . | . . . . 1 2 2 1 . Propulsion 2 | 1 3 5 3 2 2 2 3 2 Utility 7 | . 3 6 9 8 5 6 8 5 Weapon 4 | 1 4 9 5 5 1 1 4 2 Tool/Special . | . . . . . . . . . Unused Backups 42 | . 5 2 14 12 . . 3 6 Power 4 | . 1 . . 2 . . . 1 Propulsion 7 | . . 1 3 1 . . 1 1 Utility 17 | . 2 1 4 5 . . 2 3 Weapon 13 | . 2 . 7 3 . . . 1 Tool/Special 1 | . . . . 1 . . . . Average Slot Usage (%) 83 | . 100 99 71 85 79 81 76 65 Engine 3 | . 4 . 12 . . . . . Core 4 | . 9 13 . 4 5 5 5 4 Treads 6 | . 11 1 . 12 . . . . Wheel 12 | . 16 26 17 4 11 11 11 7 Device 15 | . 11 14 12 16 22 23 21 4 Storage 9 | . 14 14 13 5 5 5 5 8 Processor 6 | . . . . 11 17 17 15 6 Protection 3 | . . . 1 7 . . 2 12 Energy Gun 3 | . . 14 3 . 3 5 7 8 Ballistic Gun 10 | . 28 8 5 11 . 4 3 1 Ballistic Cannon 1 | . . . 5 . . . . . Peak Build Rating 109 | 7 12 17 33 97 90 90 106 109 Average Rating 50 | 5 9 13 20 81 87 87 86 78 On Entrance 44 | . 7 11 15 31 62 90 85 97 Avg Prop Armor Cover (%) 8 | . 11 4 . 8 . . . 6 Naked Turns . | . . . . . . . . . Heaviest Build 168 | 14 90 92 105 168 126 126 143 146 Greatest Support 83 | 40 40 40 28 83 40 40 40 68 Greatest Overweight (x) 47 | . 8 4 4 16 3 3 3 47 Average Overweight (x) 3 | . 2 3 2 4 2 2 2 4 Largest Inventory Capacity 25 | 8 25 25 25 25 25 25 25 25 Average Capacity 23 | 7 17 25 22 25 25 25 25 25 Most Carried 25 | 7 20 25 25 25 18 19 25 24 Average Carried 19 | 3 10 22 20 23 14 16 23 18 Final Capacity 25 | 8 25 25 25 25 25 25 25 25 Final Carried 25 | 7 20 23 25 20 14 18 25 17 Scrap Suit Usage (%) 23 | . . . . 44 100 100 17 . Parts Cannibalized 19 | . . . . 18 . . 1 . Class Distribution -------------------- 48% | Mutant 29% | Scavenger-Scrapper 5% | Derelict-Mutant 5% | Derelict-Tank 4% | Scavenger-Mutant 4% | Tank Dominant Class ---------------- Mutant | -10/Materials Mutant | -10/Subcaves Mutant | -7/Scraptown Scavenger-Scrapper | -5/Factory Scavenger-Scrapper | -5/Upper Caves Scavenger-Scrapper | -5/Upper Caves Scavenger-Scrapper | -5/Warlord Scavenger-Mutant | -4/Proximity Caves Resources | -11 -10 -10 -7 -5 -5 -5 -5 -4 ----------- Run | Yrd Mat Sub Scr Fac Upp Upp War Pro Matter Collected 5096 | 322 572 143 241 2825 325 196 143 329 Remotely . | . . . . . . . . . Salvage Created 7088 | 144 538 169 45 4831 465 414 61 421 Parts 331 | 11 42 10 . 226 4 16 9 13 Haulers Intercepted 4 | . 2 . . 2 . . . . Recyclers Shooed 6 | . 2 . . 4 . . . . Parts Field Recycled . | . . . . . . . . . Retrieved Matter . | . . . . . . . . . Parts Self-Destructed 41 | . . 15 . . 3 11 . 12 Prevented 1 | . . 1 . . . . . . Parts Restored . | . . . . . . . . . Kills | -11 -10 -10 -7 -5 -5 -5 -5 -4 ------- Run | Yrd Mat Sub Scr Fac Upp Upp War Pro Combat Hostiles Destroyed 96 | . 9 4 1 58 4 10 1 9 Melee 5 | . . . . 1 . . . 4 Guns 54 | . 9 4 . 29 2 5 1 4 Cannons 9 | . . . 1 7 1 . . . AOE 17 | . . . . 12 . 4 . 1 Classes Destroyed 21 | 2 6 3 1 8 . . 1 . Worker 9 | . 1 . . 8 . . . . Builder 4 | . 1 . . 3 . . . . Tunneler 5 | 3 1 . . 1 . . . . Hauler 4 | . 2 . . 2 . . . . Recycler 5 | 1 . . . 4 . . . . Mechanic 1 | . . . . 1 . . . . Operator 2 | . 2 . . . . . . . Watcher 3 | . 1 . . 2 . . . . Swarmer 10 | . . 1 . 5 . 2 . 2 Saboteur 1 | . . . . 1 . . . . Grunt 49 | . 9 . . 27 3 6 . 4 Brawler 4 | . . . . 3 1 . . . Duelist 6 | . . . . 6 . . . . Protector 3 | . . . . 2 . . 1 . Sentry 6 | . . 1 . 3 . 1 . 1 Hunter 4 | . . . . 1 . 1 . 2 Programmer 9 | . . . . 9 . . . . Heavy 1 | . . . . 1 . . . . Striker 1 | . . . . . . . 1 . Subdweller 2 | . . 2 . . . . . . Ranger 1 | . . . 1 . . . . . Decomposer 2 | . . . . . . 2 . . Packrat 3 | . . . . . 3 . . . Best Kill Streak 14 | 2 4 1 1 14 4 4 1 3 Combat Bots Only 11 | . 3 1 1 11 4 4 1 3 Max Kills in Single Turn 3 | 1 2 1 1 3 1 3 1 1 Gunslinging 1 | . . . . . . 1 . . Exploded 3 | . . . . 2 . 3 . 1 Melee 1 | . . . . 1 . . . 1 Uniques/NPCs Destroyed . | . . . . . . . . . Combat | -11 -10 -10 -7 -5 -5 -5 -5 -4 -------- Run | Yrd Mat Sub Scr Fac Upp Upp War Pro Hostile Shots Fired 931 | . 22 26 16 462 18 57 69 261 Missed 277 | . 4 5 3 132 12 16 26 79 Hits 654 | . 18 21 13 330 6 41 43 182 Melee 22 | . . . . 18 . . 4 . Projectile 632 | . 18 21 13 312 6 41 39 182 Critical Strikes 30 | . . . . 21 . 1 2 6 Damage Taken 12224 | . 217 380 165 6958 115 780 856 2753 Core 1126 | . 25 65 24 562 40 65 17 328 Absorbed by Shields 439 | . . . . 64 . . 275 100 Ignored by Resistances 372 | . . . . 372 . . . . Regen/Repaired (Parts) 533 | . . . . 398 . . 135 . Core Remaining (%) 77 | 100 . . 54 . . . . . Volleys Fired 381 | 13 53 12 11 212 18 24 6 32 Largest 3 | 2 2 2 2 3 2 3 3 3 Hottest 290 | 40 40 90 107 290 190 190 173 185 Shots Fired 869 | 26 106 24 20 531 27 52 18 65 Gun 749 | 26 106 24 4 452 12 45 17 63 Cannon 95 | . . . 16 63 15 1 . . Launcher 23 | . . . . 16 . 5 . 2 Special 2 | . . . . . . 1 1 . Kinetic 628 | 26 106 5 15 436 . 26 6 8 Thermal 155 | . . . . 62 27 20 6 40 Explosive 8 | . . . . 1 . 5 . 2 Electromagnetic 56 | . . 19 5 32 . . . . Entropic 20 | . . . . . . . 5 15 Robot Hit Streak 21 | 8 10 12 4 21 3 7 4 8 Robot Miss Streak 9 | 3 3 2 6 6 4 3 6 9 Penetration Max 2 | . . . . 2 . . . . Secondary Targets 10 | . 3 . . 4 . 1 1 1 Max Gunslinging Chain 1 | . 1 . . 1 . 1 1 1 Shots Hit Robots 550 | 14 62 20 7 334 18 36 11 48 Core Hits 292 | 7 30 10 1 177 11 24 7 25 Critical Kills 20 | 1 . . . 19 . . . . Critical Parts Destroyed 35 | . . . . 33 . 1 1 . Critical Strikes 61 | 1 . . . 57 . 1 1 1 Meltdown 1 | . . . . 1 . . . . Destroy 54 | 1 . . . 53 . . . . Smash 4 | . . . . 3 . 1 . . Impale 1 | . . . . . . . . 1 Detonate 1 | . . . . . . . 1 . Melee Attacks 59 | . . 4 . 30 3 2 . 20 Impact 35 | . . . . 30 3 2 . . Slashing 4 | . . 4 . . . . . . Piercing 20 | . . . . . . . . 20 Sneak Attacks 7 | . . . . 4 1 2 . . Combat Hostiles . | . . . . . . . . . Follow-up Attacks . | . . . . . . . . . Damage Inflicted 16718 | 172 806 243 222 10834 620 1699 582 1540 Guns 8683 | 172 806 243 11 5307 262 734 333 815 Cannons 1981 | . . . 211 1492 243 35 . . Explosions 4465 | . . . . 3249 . 768 229 219 Melee 1569 | . . . . 786 115 162 . 506 Ramming 20 | . . . . . . . 20 . Kinetic 6257 | 172 806 39 114 4737 . 199 57 133 Thermal 5167 | . . . . 3200 505 570 409 483 Explosive 1291 | . . . . 304 . 768 . 219 Electromagnetic 2119 | . . 204 108 1807 . . . . Impact 1063 | . . . . 786 115 162 . . Slashing . | . . . . . . . . . Piercing 506 | . . . . . . . . 506 Entropic 295 | . . . . . . . 96 199 Highest Corruption 18 | . . . 2 9 18 18 18 2 Average Corruption 6 | . . . 1 4 18 18 3 2 Corruption Purged 4 | . . . . 4 . . . . Corruption Blocked . | . . . . . . . . . Effects 135 | . . . 1 84 20 21 4 5 Message Errors 29 | . . . . 16 4 5 2 2 Matter Fused 25 | . . . 1 16 2 5 1 . Heat Flow Errors 15 | . . . . 10 2 2 . 1 Energy Discharges 16 | . . . . 12 2 2 . . Parts Rejected 1 | . . . . 1 . . . . Parts Fused 2 | . . . . 1 1 . . . Data Loss (minor) 19 | . . . . 12 1 4 1 1 Data Loss (major) 5 | . . . . 2 2 1 . . Misfires 4 | . . . . 4 . . . . Alerts 7 | . . . . 1 3 2 . 1 Weapon Failures 12 | . . . . 9 3 . . . Overload Shots . | . . . . . . . . . Overflow Damage 803 | . . . 24 528 93 158 . . Projectiles 66 | . . . 24 27 . 15 . . Explosions 120 | . . . . 120 . . . . Melee 617 | . . . . 381 93 143 . . Knockbacks 3 | . . . . 2 . 1 . . Impact 3 | . . . . 2 . 1 . . Kinetic . | . . . . . . . . . Secondary . | . . . . . . . . . Self-Inflicted Damage 112 | . . . . . . . 112 . Shots 1 | . . . . . . . 1 . Rammed 1 | . . . . . . . 1 . Targets Rammed 1 | . . . . . . . 1 . Kicked . | . . . . . . . . . Crushed . | . . . . . . . . . Highest Temperature 612 | . 7 1 252 612 304 220 200 558 Average Temperature 113 | . 2 1 81 112 85 28 94 202 Received Heat Transfer 2462 | . 123 54 36 1576 54 246 . 373 Effects 34 | . . . . 19 . . . 15 Shutdowns 5 | . . . . 4 . . . 1 Energy Bleed 6 | . . . . 5 . . . 1 Interference 10 | . . . . 5 . . . 5 Matter Decay 1 | . . . . . . . . 1 Short Circuit 2 | . . . . 1 . . . 1 Damage (minor) 2 | . . . . 2 . . . . Damage (major) 7 | . . . . 1 . . . 6 Damage (core) 1 | . . . . 1 . . . . Siege Activations . | . . . . . . . . . Martial Activations . | . . . . . . . . . Shielding Activations . | . . . . . . . . . Robots Disrupted . | . . . . . . . . . Combat Hostiles . | . . . . . . . . . Robots Corrupted 9 | . . . . 8 . 1 . . Combat Hostiles 6 | . . . . 6 . . . . Parts Fried 21 | . . 3 . 18 . . . . Impact Corruptions 20 | . . . . 10 3 7 . . Robots Melted 5 | . . . . 3 1 1 . . Combat Hostiles 5 | . . . . 3 1 1 . . Parts Melted 14 | . 2 1 . 9 1 1 . . Heat Transferred 5739 | . . . . 2736 709 912 400 982 Parts Sabotaged 4 | . . . . 2 . . 2 . Parts Stolen . | . . . . . . . . . Parts Stripped . | . . . . . . . . . Power Chain Reactions 3 | . . . . 3 . . . . Alert | -11 -10 -10 -7 -5 -5 -5 -5 -4 ------- Run | Yrd Mat Sub Scr Fac Upp Upp War Pro Maximum Alert Level 5 | . . . . 5 . . . . Low Security (%) 65 | 100 100 . . 47 . . . . Level 1 4 | . . . . 6 . . . . Level 2 2 | . . . . 4 . . . . Level 3 9 | . . . . 14 . . . . Level 4 6 | . . . . 9 . . . . Level 5 1 | . . . . 2 . . . . High Security 9 | . . . . 14 . . . . Max Security . | . . . . . . . . . Peak Influence 2464 | 10 75 . . 2464 . . . . Initial . | . . . . . . . . . Average 468 | 1 21 . . 688 . . . . Influence Increases 4175 | 20 291 50 . 3114 135 220 85 260 Destroy 0b10 Robot/C 2140 | . 180 40 . 1400 80 200 60 180 Destroy 0b10 Robot/NC 180 | 20 40 . . 120 . . . . Destroy Leader 356 | . 46 10 . 250 10 20 . 20 Allied During Kill 129 | . . . . 119 . . 10 . Successful Hack 113 | . 25 . . 88 . . . . Disable Machine 435 | . . . . 435 . . . . Destroy Structure 462 | . . . . 462 . . . . Lose Combat Pursuer 360 | . . . . 240 45 . 15 60 Influence Decreases 4135 | 20 274 67 . 650 1119 498 1262 245 Entered New Map 2431 | . . 9 . . 913 282 1202 25 Time Decay 1337 | 20 274 58 . 423 206 206 30 120 Lost Part 287 | . . . . 167 . 10 10 100 Lost Ally 80 | . . . . 60 . . 20 . Squads Dispatched 44 | . 3 . . 41 . . . . Investigation 5 | . 1 . . 4 . . . . Extermination 5 | . . . . 5 . . . . Reinforcement 9 | . 2 . . 7 . . . . Assault 25 | . . . . 25 . . . . Garrison . | . . . . . . . . . Intercept . | . . . . . . . . . Searches Triggered . | . . . . . . . . . Construction Impeded 4 | . . . . 4 . . . . Haulers Reinforced 1 | . . . . 1 . . . . Active Scanning Responses . | . . . . . . . . . Cargo Convoy Interrupts . | . . . . . . . . . Stealth | -11 -10 -10 -7 -5 -5 -5 -5 -4 --------- Run | Yrd Mat Sub Scr Fac Upp Upp War Pro Distress Signals 8 | . 2 . . 6 . . . . Communications Jammed . | . . . . . . . . . Distress Signals . | . . . . . . . . . Times Spotted 208 | . 23 7 4 115 7 12 25 15 Peak Tracking Total 15 | . 3 3 3 15 3 4 11 5 Tactical Retreats 11 | . . . . 7 2 . 1 1 Traps | -11 -10 -10 -7 -5 -5 -5 -5 -4 ------- Run | Yrd Mat Sub Scr Fac Upp Upp War Pro Traps Triggered 2 | . 1 . . 1 . . . . Indirectly . | . . . . . . . . . Trap Hack Attempts . | . . . . . . . . . Triggered . | . . . . . . . . . Disarmed . | . . . . . . . . . Reprogrammed . | . . . . . . . . . Reused . | . . . . . . . . . Traps Extracted . | . . . . . . . . . Installed . | . . . . . . . . . Triggered . | . . . . . . . . . Most Traps Carried 2 | . . . 2 2 2 2 2 2 Machines | -11 -10 -10 -7 -5 -5 -5 -5 -4 ---------- Run | Yrd Mat Sub Scr Fac Upp Upp War Pro Machines Disabled 32 | . . 1 2 29 . . . . Max in Single Turn 5 | . . 1 1 5 . . . . Machines Repaired . | . . . . . . . . . Machines Dismantled . | . . . . . . . . . Machines Sabotaged . | . . . . . . . . . Overloaded Fab Kills . | . . . . . . . . . Hacking | -11 -10 -10 -7 -5 -5 -5 -5 -4 --------- Run | Yrd Mat Sub Scr Fac Upp Upp War Pro Machines Accessed 27 | . 6 1 4 12 . 1 3 . Terminals 13 | . 6 . . 6 . 1 . . Fabricators 1 | . . . . 1 . . . . Repair Stations 3 | . . . . 3 . . . . Recycling Units 2 | . . . . 2 . . . . Scanalyzers . | . . . . . . . . . Garrison Access . | . . . . . . . . . Total Hacks 100 | . 27 1 36 25 . 7 4 . Successful 75 | . 17 1 36 10 . 7 4 . Failed 25 | . 10 . . 15 . . . . Catastrophic 8 | . 3 . . 5 . . . . Database Lockouts . | . . . . . . . . . Manual 26 | . 18 . . 8 . . . . Terminals 46 | . 27 . . 12 . 7 . . Fabricators 2 | . . . . 2 . . . . Repair Stations 8 | . . . . 8 . . . . Recycling Units 3 | . . . . 3 . . . . Scanalyzers . | . . . . . . . . . Garrison Access . | . . . . . . . . . Terminal Hacks 56 | . 7 1 36 1 . 7 4 . Record 44 | . . . 35 . . 7 2 . Robot Analysis 2 | . 2 . . . . . . . Prototype ID Bank 2 | . 2 . . . . . . . Open Door 2 | . . . . . . . 2 . Terminal Index 1 | . 1 . . . . . . . Locate Traps 2 | . 2 . . . . . . . Zone Layout 1 | . . . . 1 . . . . Proto ID Catalog 2 | . . 1 1 . . . . . Fabricator Hacks . | . . . . . . . . . Repair Station Hacks 5 | . . . . 5 . . . . Scan Component 3 | . . . . 3 . . . . Repair 2 | . . . . 2 . . . . Recycling Unit Hacks . | . . . . . . . . . Scanalyzer . | . . . . . . . . . Garrison Access Hacks . | . . . . . . . . . Unauthorized Hacks 14 | . 10 . . 4 . . . . Terminals 12 | . 10 . . 2 . . . . Track 1 | . 1 . . . . . . . Assimilate 1 | . 1 . . . . . . . Botnet 4 | . 2 . . 2 . . . . Operators 1 | . 1 . . . . . . . Skim 5 | . 5 . . . . . . . Fabricators . | . . . . . . . . . Repair Stations . | . . . . . . . . . Recycling Units 2 | . . . . 2 . . . . Fedlink 1 | . . . . 1 . . . . Scrapoids 1 | . . . . 1 . . . . Scanalyzers . | . . . . . . . . . Garrison Access . | . . . . . . . . . Data Cores Recovered 1 | . 1 . . . . . . . Used . | . . . . . . . . . Hacking Detections 18 | . 6 . . 11 . 1 . . Full Trace Events 1 | . . . . 1 . . . . Feedback Events 1 | . . . . 1 . . . . Corruption 1 | . . . . 1 . . . . Feedback Blocked . | . . . . . . . . . Robot Schematics Acquired . | . . . . . . . . . Robots Built . | . . . . . . . . . Authchips . | . . . . . . . . . Time . | . . . . . . . . . Total Robot Build Rating . | . . . . . . . . . Part Schematics Acquired . | . . . . . . . . . Parts Built . | . . . . . . . . . Authchips . | . . . . . . . . . Time . | . . . . . . . . . Total Part Build Rating . | . . . . . . . . . Part Studies Acquired . | . . . . . . . . . Parts Repaired 2 | . . . . 2 . . . . Time 47 | . . . . 47 . . . . Parts Recycled . | . . . . . . . . . Recycled Matter . | . . . . . . . . . Retrieved Matter . | . . . . . . . . . Retrieved Components . | . . . . . . . . . Parts Scanalyzed . | . . . . . . . . . Part Schematics Acquired . | . . . . . . . . . Parts Damaged . | . . . . . . . . . Bothacking | -11 -10 -10 -7 -5 -5 -5 -5 -4 ------------ Run | Yrd Mat Sub Scr Fac Upp Upp War Pro Used RIF Installer . | . . . . . . . . . Robots Hacked . | . . . . . . . . . Non-combat . | . . . . . . . . . Combat . | . . . . . . . . . Robot Hacks Applied . | . . . . . . . . . Relay Couplers Released . | . . . . . . . . . Fabnet Peak Effective % . | . . . . . . . . . Robots Rewired 5 | . . . . . . . 5 . Allies Hacked . | . . . . . . . . . Hacks Repelled . | . . . . . . . . . Allies | -11 -10 -10 -7 -5 -5 -5 -5 -4 -------- Run | Yrd Mat Sub Scr Fac Upp Upp War Pro Total Allies 10 | . . . . 5 . . 5 . Largest Group 5 | . . . . 4 . . 5 . Highest-Rated Group 309 | . . . . 188 . . 309 . Highest-Rated Ally 68 | . . . . 47 . . 68 . Total Orders . | . . . . . . . . . Ally Attacks 101 | . . . . 90 . . 11 . Total Damage 2580 | . . . . 2107 . . 473 . Kills 18 | . . . . 15 . . 3 . Allies Corrupted 2 | . . . . . . . 2 . Allies Melted 2 | . . . 2 . . . . . Intel | -11 -10 -10 -7 -5 -5 -5 -5 -4 ------- Run | Yrd Mat Sub Scr Fac Upp Upp War Pro Active Infowar (turns) 8685 | 29 1363 693 2580 2352 428 427 754 59 Sensors 2752 | . . . . 1146 428 427 692 59 Structural 1704 | . . . . 98 425 427 754 . Seismic 5831 | 29 1363 693 2580 1166 . . . . Jamming 1358 | . . . . 1358 . . . . Robot Analysis Total 2 | . 2 . . . . . . . Derelict Logs Recovered 4 | . . . 2 . 2 . . . Drone Launches . | . . . . . . . . . Drone Recoveries . | . . . . . . . . . Exploration | -11 -10 -10 -7 -5 -5 -5 -5 -4 ------------- Run | Yrd Mat Sub Scr Fac Upp Upp War Pro Turns Passed 11214 | 142 1715 693 2848 3776 430 427 799 384 Spaces Moved 6815 | 59 1007 429 1982 1778 363 324 722 151 Core 6 | 5 . . . . . . . 1 Treads 571 | 54 303 8 . 206 . . . . Legs 9 | . . . . . . . . 9 Wheels 6228 | . 704 421 1982 1571 363 324 722 141 Hover . | . . . . . . . . . Flight . | . . . . . . . . . Fastest Speed 50 | 50 90 140 100 120 90 90 90 100 Average Speed 135 | 150 146 145 132 161 99 96 90 133 Slowest Speed 2400 | 160 320 560 145 335 100 100 100 2400 Overloaded Moves . | . . . . . . . . . Propulsion Burnouts . | . . . . . . . . . Robots Hopped . | . . . . . . . . . Potential Cave-ins 5 | . . . . 3 . 2 . . Cave-ins Triggered . | . . . . . . . . . Teleports 1 | . . . . 1 . . . . Exploration Rate (%) 55 | 5 99 34 90 47 61 47 81 34 Regions Visited 8 Branch Regions 6 Pre-discovered Areas 7 | . 1 . 6 . . . . . Known Exits Taken 4 | . . . . 1 1 1 1 . Unknown Exits Taken 4 | 1 1 1 1 . . . . . Scrap Searched 7 | . . . 7 . . . . . Spaces Dug 93 | . . . 12 51 9 19 . 2 Terrain Destroyed 419 | . . . 13 254 17 56 20 59 Melee 8 | . . . . 4 2 . . 2 Projectile 82 | . . . 5 26 8 2 9 32 AOE 261 | . . . . 177 . 48 11 25 Terrain Rammed . | . . . . . . . . . Walls Destroyed . | . . . . . . . . . Machines Disabled . | . . . . . . . . . Actions | -11 -10 -10 -7 -5 -5 -5 -5 -4 --------- Run | Yrd Mat Sub Scr Fac Upp Upp War Pro Total 8066 | 85 1153 471 2187 2297 395 385 852 241 Wait 341 | . 42 7 106 88 2 24 51 21 Move 6808 | 58 1006 428 1981 1777 362 323 722 151 Hop . | . . . . . . . . . Pick Up 142 | 7 22 8 39 44 . 5 15 2 Fast Attach 27 | 7 1 . 4 10 . . 1 4 Attach 63 | . 2 3 2 32 7 2 5 10 Detach 15 | . 1 . 1 7 2 1 3 . Swap 91 | . 12 6 9 54 1 4 4 1 Drop 103 | . 14 3 34 43 . . 9 . Fire 381 | 13 53 12 11 212 18 24 6 32 Melee 59 | . . 4 . 30 3 2 . 20 Ram . | . . . . . . . . . Kick . | . . . . . . . . . Crush . | . . . . . . . . . Escape Stasis . | . . . . . . . . . Rewire 36 | . . . . . . . 36 . Trap . | . . . . . . . . . Miscellaneous . | . . . . . . . . . Route ------- -11/Scrapyard -10/Materials (discovered 5 exits: *Mat x3 / [*Min] / *Sub) -10/Subcaves (discovered 4 exits: *Mat x2 / Rec / *Scr) -7/Scraptown (discovered 2 exits: *Fac x2) -5/Factory (discovered 5 exits: *Fac x3 / *Upp x2) -5/Upper Caves -5/Upper Caves (discovered 2 exits: Fac / *War) -5/Warlord -4/Proximity Caves (discovered 1 exit: Fac) History --------- Turn | Location | Event 7 | -11/Scrapyard | Discovered new exit (range 15) 143 | -11/Scrapyard | Entered Materials 144 | -10/Materials | Met a group of wandering Federalists 241 | -10/Materials | Discovered new exit (range 13) 272 | -10/Materials | Discovered new exit (range 15) 291 | -10/Materials | Discovered new exit (range 3) 314 | -10/Materials | Build established: Mutant 843 | -10/Materials | Discovered new exit (range 8) 1140 | -10/Materials | Learned location of Subcaves (-10) 1205 | -10/Materials | Identified exit to Materials 1205 | -10/Materials | Learned location of 2 exits from Materials 1305 | -10/Materials | Learned location of 2 exits from Subcaves 1340 | -10/Materials | Learned Storage garrison access intel 1365 | -10/Materials | Learned 4 Recycling zone layouts 1381 | -10/Materials | Learned location of 1 exit from Storage 1406 | -10/Materials | Learned location of 2 exits from Subcaves 1442 | -10/Materials | Learned Storage trap positions 1858 | -10/Materials | Entered Subcaves 1859 | -10/Subcaves | Continued accompanying wandering Federalists (3) 1859 | -10/Subcaves | Approached by a straggling Scientist 1859 | -10/Subcaves | Identified exit to Materials 1859 | -10/Subcaves | Identified exit to Recycling 2015 | -10/Subcaves | Visited 4L-MR0's lab 2028 | -10/Subcaves | Found Tower Shield 2339 | -10/Subcaves | Shifting Twisted Machinery released Barrage Gun 2360 | -10/Subcaves | Shifting Twisted Machinery released Mak. System Shield 2371 | -10/Subcaves | Shifting Twisted Machinery released Spk. Treads 2390 | -10/Subcaves | Shifting Twisted Machinery released Sub. Machine Gun 2415 | -10/Subcaves | A swath of the cavern ceiling suddenly collapsed 2469 | -10/Subcaves | Shifting Twisted Machinery released Sub. Shrapnel Launcher 2480 | -10/Subcaves | Shifting Twisted Machinery released Spk. Treads 2551 | -10/Subcaves | Entered Scraptown 2552 | -7/Scraptown | Lost 4 parts (1p1n2w) 2756 | -7/Scraptown | Scanned Subdweller tech in exchange for log data 2758 | -7/Scraptown | Learned Research terminal intel 2760 | -7/Scraptown | Learned location of Quarantine (-3) 3110 | -7/Scraptown | Visited Shadow of the Wyrm 3139 | -7/Scraptown | Visited Symbiants 3167 | -7/Scraptown | Visited The Evicted 3184 | -7/Scraptown | Visited Bundlers 3303 | -7/Scraptown | Visited IN-MT5's Study 3324 | -7/Scraptown | Visited UFD Registry 3324 | -7/Scraptown | Registered with UFD as "Monorunner" 3367 | -7/Scraptown | Visited Spacefarers 3474 | -7/Scraptown | Discovered new exit (range 13) 3638 | -7/Scraptown | Visited Science Guys 3711 | -7/Scraptown | Visited LU-1G1's Boring Crew 3757 | -7/Scraptown | Visited Cartography Club 3822 | -7/Scraptown | Found Surveybot 17 Chip 4145 | -7/Scraptown | Learned location of Zion (-7) 4145 | -7/Scraptown | Learned location of Extension (-4) 4145 | -7/Scraptown | Learned 8 Materials zone layouts 4145 | -7/Scraptown | Learned 12 Materials zone layouts 4145 | -7/Scraptown | Learned 20 Factory zone layouts 4145 | -7/Scraptown | Learned 16 Research zone layouts 4145 | -7/Scraptown | Learned 12 Research zone layouts 4145 | -7/Scraptown | Learned 12 Lower Caves zone layouts 4145 | -7/Scraptown | Learned 16 Upper Caves zone layouts 4145 | -7/Scraptown | Learned 8 Proximity Caves zone layouts 4145 | -7/Scraptown | Learned location of 2 exits from Proximity Caves 4145 | -7/Scraptown | Learned location of 3 exits from Proximity Caves 4250 | -7/Scraptown | Found Deep Structural Scanner 4333 | -7/Scraptown | Visited Observation Area 4396 | -7/Scraptown | Visited Research Penetration Think Tank 4428 | -7/Scraptown | Visited Curators Association 4489 | -7/Scraptown | Received an X-ray algorithm 4610 | -7/Scraptown | Visited Chapter 10 4642 | -7/Scraptown | Visited Scrap Suit Storage 4649 | -7/Scraptown | Found Scrap Suit 4673 | -7/Scraptown | Visited Junk Repository 5053 | -7/Scraptown | Met Optimus 5053 | -7/Scraptown | Accepted into 0bPrime 5276 | -7/Scraptown | Civil war broke out across Scraptown 5284 | -7/Scraptown | Found Prototype Special Weapon 5284 | -7/Scraptown | Identified LU-1G1's Laser Shovel 5305 | -7/Scraptown | Found Personal Teleporter v0.10 5386 | -7/Scraptown | Discovered new exit (range 5) 5399 | -7/Scraptown | Entered Factory 5399 | -5/Factory | Evolved 10 slots: Propulsion x2, Utility x7, Weapon x1 5401 | -5/Factory | Lost 3 allies 5654 | -5/Factory | Build established: Derelict-Tank 6075 | -5/Factory | Discovered new exit (range 13) 6088 | -5/Factory | Build established: Derelict-Mutant 6269 | -5/Factory | Loaded intel: 8 recycling unit locations 6663 | -5/Factory | Discovered new exit (range 12) 6733 | -5/Factory | Discovered new exit (range 5) 6739 | -5/Factory | Identified exit to Upper Caves 7104 | -5/Factory | Build established: Tank 7132 | -5/Factory | Noticed UFD Elites at a Recycling Unit 7377 | -5/Factory | Found Scrap Suit 7410 | -5/Factory | Found Scrap Suit 7465 | -5/Factory | Found Scrap Suit 7499 | -5/Factory | First assault squad dispatched 7828 | -5/Factory | Build established: Scavenger-Scrapper 7899 | -5/Factory | Discovered exit to Upper Caves (range 10) 7962 | -5/Factory | Scrapoid reinforcements arrived 7963 | -5/Factory | P-70 Sage assimilated allied 05F01-D 7998 | -5/Factory | Found Scrap Suit 8136 | -5/Factory | Repaired KE Penetrator 8221 | -5/Factory | P-70 Sage assimilated allied 05F04-D 8540 | -5/Factory | Repaired Ovr. Barrage Gun 8613 | -5/Factory | High security lockdown imminent 8693 | -5/Factory | High security lockdown engaged 8716 | -5/Factory | Destroyed 11 combat bots 8996 | -5/Factory | Core integrity fell below 50% 9155 | -5/Factory | Discovered new exit (range 12) 9175 | -5/Factory | Entered Upper Caves 9176 | -5/Upper Caves | Identified exit to Upper Caves 9176 | -5/Upper Caves | System corruption reached 10% 9236 | -5/Upper Caves | Learned location of 1 exit from Upper Caves 9605 | -5/Upper Caves | Spotted B-75 Beast 9605 | -5/Upper Caves | Entered another Upper Caves area 9606 | -5/Upper Caves | Identified exit to Warlord 9607 | -5/Upper Caves | Identified exit to Factory 9698 | -5/Upper Caves | Learned location of 2 exits from Lower Caves 9698 | -5/Upper Caves | Learned location of 2 exits from Upper Caves 9698 | -5/Upper Caves | Learned Armory stockpile data 9698 | -5/Upper Caves | Learned Factory security intel 9698 | -5/Upper Caves | Learned Extension terminal intel 9742 | -5/Upper Caves | Attached CPS modules to H-66 Slayer. 9787 | -5/Upper Caves | Attracted the attention of an 0b10 checkpoint 10032 | -5/Upper Caves | Entered Warlord 10064 | -5/Warlord | System corruption cleaned by Quarantine Array 10330 | -5/Warlord | Visited the Vortex Lab 10331 | -5/Warlord | Warlord's base attacked by MAIN.C 10340 | -5/Warlord | Found Prototype Energy Gun 10343 | -5/Warlord | Found Prototype Energy Gun 10537 | -5/Warlord | Rebuked by Warlord 10681 | -5/Warlord | Warlord forces counterattacked 10743 | -5/Warlord | Opened side exit 10761 | -5/Warlord | Spotted Striker 10761 | -5/Warlord | Spotted Executioner 10769 | -5/Warlord | Attached CPS modules to Striker. 10772 | -5/Warlord | Identified Vortex Rail (x2) 10787 | -5/Warlord | Destroyed Striker 10807 | -5/Warlord | Discovered new exit (range 14) 10814 | -5/Warlord | Found Prototype Device 10815 | -5/Warlord | Lost 10 allies 10828 | -5/Warlord | Identified exit to Proximity Caves 10831 | -5/Warlord | Spotted Executioner 10831 | -5/Warlord | Entered Proximity Caves 10831 | -4/Proximity Caves | Identified Adv. Kinecellerator 10833 | -4/Proximity Caves | Attracted the attention of an 0b10 checkpoint 10879 | -4/Proximity Caves | Lost 3 parts (1u2w) 10989 | -4/Proximity Caves | Lost 4 parts (3u1w) 11028 | -4/Proximity Caves | Core integrity fell below 20% 11041 | -4/Proximity Caves | Lost 5 parts (1p1n2u1w) 11215 | -4/Proximity Caves | Destroyed by G-67 Veteran with Field Laser Last Messages --------------- 11165_ Adv. Heat Sink fries itself beyond repair. 11168_ Myomer Leg fries itself beyond repair. 11169_ Flexi-carbon Leg fries itself beyond repair. 11171_ Backup Laser III destroyed. 11172_ Slug penetrates G-67 Veteran. 11172_ Slug penetrates Wall. 11173_ Flexi-carbon Leg fries itself beyond repair. 11174_ Critical hit (Burn: +50). 11175_ Ovr. Huge Scrapsphere recovered from malfunction. 11176_ Field Laser fries itself beyond repair. 11177_ Acquired 77 matter. 11177_ Imp. Targeting Computer destroyed. 11183_ Ovr. Huge Scrapsphere destroyed. 11189_ Coil Gun destroyed. 11194_ G-67 Veteran destroyed. 11195_ System corrupted: Component data lost. 11197_ Acquired 78 matter. 11202_ Acquired Flexi-carbon Leg. 11205_ Plasma Rifle fries itself beyond repair. 11207_ Acquired Field Laser. Map ----- +----------------------------------------------------+ | ?????????????????????????????????????????????????? | | ?????????????????????????????????????????????????? | | ?????????????????????????????????????????????????? | | ?????????????????????????????????????????????????? | | ?????????????????????????????????????????????????? | | ?????????????????????????????????????????????????? | | ?????????????????????????????????????????????????? | | ??????####???????????????????????????????????????? | | ?????? ##??????????????????????????????????????? | | ?????? #????????????????????????###???????????? | | ??????# #???????????????????????## #####???????? | | ??????# ###???????????????????##### ##??????? | | ?????? # ##???????????????????# ?? #??????? | | ?????? # #???????????????????# #??????? | | ?????? ##?????????????###### ## ? ### #??????? | | #????? ##?######?????# ## ### #?# #??????? | | #????? ### ####??# ######?# ###????? | | #???? ## #### #?????# #????? | | ?????# ### ## #??#### #????? | | #???## #?## ### ##??# ##???? | | ##### ####### #### ######???### #???? | | ### ### #### ##???????## #???? | | ## ### ### #????????## ##???? | | ### ### ## ##????????# ##????? | | #### ## g #????????# #?????? | | #?# # @ #????????# #?????? | | #?## ### ## #????????# #?????? | | #???## ##?######## ## #????????# #?????? | | #???## ##????????# ###### #????????# #?????? | | #?### #######??# #????# % #????????# #?????? | | ## #### ##???# #???####?# #?????? | | #" ""# ##??## ##??## ### #?????? | | # ## ### #???## ###### #?????? | | #####?# ##???# ## ####?????? | | #?????# ##### $*% ##??????? | | #?????## ###????? | | #" #??????# ##### ##???? | | ##### ######??## ##### ##???# ##??? | | ??### ### ###### ##?## #????# #??? | | ### #"# #?# #??## #####?# #??? | | # ### ##?## #???##### ######### ##??? | | # ### ###??## ##??????# ##????###???? | | # ## # ##????# ##??????## #??????????? | | # ## # #?????# ##?####### #??????????? | | ## ## ##????# #?## #### #??????##### | | ????## ## #????# !### ??????????????????? | | ?????? #????#!%## ??????????????????? | | ??????# #???## ! ??????????????????? | | ??????## ##???# ## ??????????????????? | | ???????#### ###??## ### ??????????????????? | +----------------------------------------------------+ Best States ------------- Heat Dissipation 67 Coolant Potential 80 Energy Generation 19 Energy Capacity 660 Matter Stores 300 Matter Capacity 300 Sight Range 16 Robot Scan Range 15 Terrain Scan Density 10 Jamming Range 12 Armor Coverage 1050 Resistance: KI 30 Weapon Cycling 20 Evasion (%) 42 Targeting Accuracy 8 Target Analysis 6 Recoil Reduction 4 Kinecelleration 30 Salvage Targeting 4 Offensive Hacking 10 Defensive Hacking 12 Item Schematics ----------------- None Robot Schematics ------------------ None Fabricated ------------ Nothing Repaired ---------- KE Penetrator | 10% | -5/Factory Ovr. Barrage Gun | 35% | -5/Factory Studied --------- None Alien Tech Used ----------------- None Achievements -------------- Link The Feds Uncivil War Challenges ------------ None Game ------ Seed ArmageddonShockboltLegs Manual? 0 Play Time 02:04:51 Cumulative 544.9 hours Start 2025.12.09 @ 17:06:24 End 2025.12.13 @ 11:30:41 Sessions 5 Manual Loads 0 Difficulty Rogue Special Mode None Game No. 224 Rogue 224 Adventurer 0 Explorer 0 Win Type - Total 17 Types 15/0/1/1/0/0/0/0/0/0 Lore% 80 Gallery% 77 Achievement% 54 Wizard Run 0 Options --------- Layout 0 ASCII 0 Keyboard 0 Movement Numpad Keybinds 0 Fullscreen 1 Font 24/X11 Map View 76x50 Zoom Use 0% Tactical HUD 1 Map Filters NONE Filters NONE Steam 1 RUN: a53f1b43-9e9e-42fe-b59a-a72d36f2012a